bitfinex/quotes_ETHUSD_20251212
["timestamp","ask_amount","ask_price","bid_price","bid_amount"]
[1765504683207,31.18654283,3231.9,3231.8,0.001]
[1765504683943,6.73753143,3231.9,3231.8,0.001]
[1765504684941,8.57358943,3231.9,3231.8,0.001]
[1765504685442,16.45502294,3231.9,3231.8,0.001]
[1765504685810,42.04606394,3231.9,3231.8,0.001]
[1765504687637,30.98597929,3231.8,3230.3,0.1901]
[1765504687813,0.28300997,3230.4,3230.3,0.1901]
[1765504688006,0.77300997,3230.4,3230.3,0.1901]
[1765504688210,0.77300997,3230.4,3230.3,1.1538]
[1765504689539,3.86860184,3230.4,3230.3,1.1538]
[1765504689838,0.28300997,3230.4,3230.3,1.1538]
[1765504690039,3.86860184,3230.4,3230.3,1.1538]
[1765504690440,3.86860184,3230.4,3230.3,0.6881]
[1765504691638,3.86860184,3230.4,3230.3,1.1538]
[1765504691959,0.49,3230.4,3230.3,1.1538]
[1765504692970,0.77300997,3230.4,3230.3,1.1538]
[1765504693669,3.86860184,3230.4,3230.3,1.1538]
[1765504695262,3.86860184,3230.4,3229.5,3.09643375]
[1765504695263,0.58047529,3230.3,3229.7,0.183]
[1765504695451,0.28300997,3229.9,3229.6,0.4604]
[1765504695649,0.58047529,3229.7,3229.6,0.4604]
[1765504695855,0.58047529,3229.7,3229.4,0.183]
[1765504696032,0.58047529,3229.7,3229.6,0.4802]
[1765504696452,0.58047529,3229.7,3229.4,0.183]
[1765504696649,0.58047529,3229.7,3229.6,0.4802]
[1765504696848,1.07047529,3229.7,3229.6,0.4802]
[1765504697058,0.58047529,3229.7,3229.6,0.9406]
[1765504697364,1.35348526,3229.7,3229.4,0.183]
[1765504697749,3.09635868,3229.6,3229.4,0.6434]
[1765504698070,6.19271736,3229.6,3229.1,0.4604]
[1765504698234,3.09635868,3229.6,3229.5,0.4802]
[1765504698838,3.86927972,3229.7,3229.5,0.9406]
[1765504699039,0.28300997,3229.6,3229.2,0.4604]
[1765504699632,3.09635868,3229.6,3229.5,0.4802]
[1765504699837,3.09552107,3230.5,3229.5,6.67306998]
[1765504700067,3.58552107,3230.5,3229.6,0.4604]
[1765504700266,4.16599636,3230.5,3230.4,0.6632]
[1765504700578,6.68108331,3230.5,3230.0,0.183]
[1765504700751,0.28300997,3230.4,3230.0,0.6434]
[1765504701266,0.86348526,3230.4,3230.1,0.4604]
[1765504701666,3.0956877,3230.3,3230.1,0.4604]
[1765504702132,3.0956877,3230.3,3230.2,0.4802]
[1765504702133,0.58047529,3230.3,3230.2,0.4802]
[1765504702467,0.58047529,3230.3,3229.7,0.4604]
[1765504702644,0.28300997,3230.2,3229.7,3.55660949]
[1765504702964,0.28300997,3230.2,3229.7,0.4604]
[1765504703164,0.28300997,3230.2,3230.1,0.4802]
[1765504703571,0.28300997,3230.2,3230.1,1.1236]
[1765504703744,0.28300997,3230.4,3230.1,1.1236]
[1765504703948,3.37783805,3231.2,3230.3,0.4802]
[1765504704272,0.28300997,3231.2,3231.1,0.6632]
[1765504704439,0.28300997,3231.2,3231.1,0.4802]
[1765504704440,0.58047529,3231.2,3231.1,0.4802]
[1765504704635,0.58047529,3231.2,3230.1,6.37475876]
[1765504704636,0.58047529,3231.2,3230.5,0.4604]
[1765504705041,0.58047529,3231.2,3231.1,0.4802]
[1765504705261,0.58047529,3231.2,3231.1,0.6632]
[1765504705465,0.58047529,3231.2,3231.1,1.1236]
[1765504705869,3.67530074,3231.2,3231.1,1.1236]
[1765504706365,0.58047529,3231.2,3231.1,1.1236]
[1765504706677,2.474522,3231.9,3231.1,1.1236]
[1765504706866,3.0940594,3232.0,3231.2,0.4604]
[1765504707182,0.49,3231.9,3231.2,0.83423136]
[1765504707344,0.49,3231.9,3231.2,0.4604]
[1765504707345,1.07047529,3231.9,3231.2,0.4604]
[1765504707540,0.49,3231.9,3231.2,0.4604]
[1765504707740,6.18850176,3231.8,3231.2,0.4604]
[1765504708085,0.58047529,3231.7,3231.2,0.4604]
[1765504708251,0.58047529,3231.8,3231.7,0.4802]
[1765504708458,0.58047529,3231.8,3231.1,0.183]
[1765504708767,0.86348526,3231.8,3231.1,0.183]
[1765504709243,0.86348526,3231.8,3231.7,0.4802]
[1765504709244,0.58047529,3231.8,3231.7,0.4802]
[1765504709443,1.07047529,3231.8,3231.1,0.6434]
[1765504709672,1.07047529,3231.8,3231.2,0.4604]
[1765504709871,0.49,3231.8,3231.2,0.4604]
[1765504710074,3.67455149,3232.0,3231.7,0.4802]
[1765504710284,0.58047529,3231.9,3231.7,0.4802]
[1765504710637,0.58047529,3231.9,3231.8,0.4802]
[1765504710868,3.0940762,3232.0,3231.8,0.4802]
[1765504711074,0.58047529,3232.0,3231.9,0.9406]
[1765504711580,0.49,3232.6,3231.9,0.9406]
[1765504711744,0.28500997,3233.2,3232.4,0.4802]
[1765504711745,0.49,3232.8,3232.4,0.4802]
[1765504711939,3.58329373,3232.8,3232.5,0.4802]
[1765504712165,0.58047529,3232.7,3232.5,0.4802]
[1765504712343,0.58047529,3232.7,3232.5,0.9406]
[1765504712549,0.58047529,3232.7,3232.6,0.4802]
[1765504713652,0.58047529,3232.7,3232.1,0.6434]
[1765504713859,0.58047529,3232.7,3232.1,0.183]
[1765504714353,0.58047529,3232.5,3232.1,0.183]
[1765504714575,0.49,3232.4,3231.8,0.4604]
[1765504715670,0.58047529,3232.5,3232.3,0.6632]
[1765504715877,0.58047529,3232.5,3232.4,0.4802]
[1765504716674,3.6740561,3232.5,3232.4,0.4802]
[1765504717768,0.58047529,3232.5,3232.4,0.4802]
[1765504717962,0.58047529,3232.5,3232.4,0.9406]
[1765504718156,0.58047529,3232.5,3232.4,0.4802]
[1765504718352,3.6740561,3232.5,3232.4,0.4802]
[1765504718678,0.58047529,3232.5,3232.4,0.9406]
[1765504720183,3.09341432,3232.7,3232.4,0.9406]
[1765504720352,0.58047529,3232.6,3232.4,0.9406]
[1765504720881,0.58047529,3232.6,3232.4,0.4802]
[1765504721050,0.58047529,3232.6,3232.5,0.9406]
[1765504721252,0.58047529,3232.8,3232.5,0.9406]
[1765504722379,0.58047529,3232.8,3232.7,0.4802]
[1765504722680,0.002,3233.1,3232.7,0.9702]
[1765504722850,0.002,3233.1,3233.0,0.4568]
[1765504723051,0.002,3233.1,3233.0,3.54990238]
[1765504723246,0.002,3233.1,3233.0,0.9269]
[1765504725449,0.002,3233.1,3233.0,4.02000238]
[1765504726082,0.002,3233.1,3233.0,0.9269]
[1765504726680,0.002,3233.1,3233.0,4.02000238]
[1765504729089,0.002,3233.1,3233.0,4.73133144]
[1765504730594,0.002,3233.1,3233.0,5.71731073]
[1765504731172,0.96531405,3235.0,3233.6,0.405504]
[1765504731472,0.96531405,3235.0,3233.7,0.9468]
[1765504731670,0.96531405,3235.0,3233.8,0.4568]
[1765504731861,1.54578934,3235.0,3233.8,1.1091404]
[1765504732062,4.63702774,3235.0,3233.8,1.1091404]
[1765504732262,0.002,3234.4,3233.8,1.1091404]
[1765504733397,0.002,3234.4,3233.8,4.20147758]
[1765504735795,0.002,3234.4,3233.8,0.6390404]
[1765504735996,0.002,3234.4,3233.8,0.9468]
[1765504736295,0.002,3234.4,3233.8,4.50923718]
[1765504737083,0.002,3234.4,3233.9,0.405504]
[1765504737278,0.002,3234.4,3234.3,0.6482]
[1765504737496,0.002,3234.4,3234.3,1.1382]
[1765504737797,0.002,3234.4,3234.3,4.70015913]
[1765504738004,0.002,3234.4,3234.3,5.47937526]
[1765504739094,0.002,3234.4,3234.3,2.38751613]
[1765504739600,0.002,3234.4,3234.3,5.47937526]
[1765504740478,0.002,3234.4,3234.3,2.38751613]
[1765504740898,0.002,3234.4,3234.3,1.6083]
[1765504741207,0.002,3234.4,3234.3,4.70015913]
[1765504742971,0.002,3234.4,3234.3,4.21015913]
[1765504743286,0.002,3234.4,3234.3,1.6073]
[1765504743482,0.002,3234.4,3234.3,4.69915913]
[1765504743804,0.002,3234.4,3234.3,5.16907504]
[1765504745803,0.002,3234.4,3234.3,5.19999363]
[1765504746788,0.002,3234.4,3234.3,5.16907504]
[1765504749514,0.002,3234.4,3234.3,5.57457904]
[1765504749690,0.002,3234.4,3234.3,5.08557904]
[1765504751891,0.002,3234.4,3234.3,5.11649763]
[1765504752216,0.002,3234.4,3234.3,5.97998289]
[1765504754611,0.002,3234.4,3234.3,14.09147189]
[1765504754826,3.08994839,3236.3,3235.1,0.405504]
[1765504754990,3.08994839,3236.3,3235.6,0.6335]
[1765504755309,0.002,3236.4,3235.6,4.21311688]
[1765504755487,0.002,3236.4,3235.6,5.83560524]
[1765504759684,0.002,3236.4,3235.6,6.41608053]
[1765504760512,0.002,3236.4,3235.6,5.92708053]
[1765504760720,0.002,3236.4,3235.6,6.41608053]
[1765504761823,0.002,3236.4,3235.6,5.92708053]
[1765504761992,0.002,3236.4,3235.6,6.44698669]
[1765504762302,0.002,3236.4,3235.6,2.16756365]
[1765504762502,0.002,3236.4,3235.6,5.34167653]
[1765504763737,0.002,3236.4,3235.6,1.67058436]
[1765504764088,0.002,3236.4,3235.4,3.09075833]
[1765504764401,0.002,3236.4,3235.3,0.4866]
[1765504764402,0.002,3236.4,3235.6,0.489]
[1765504765125,0.002,3236.4,3235.3,0.58047529]
[1765504765333,0.002,3236.4,3235.4,0.489]
[1765504766605,0.002,3236.4,3235.4,3.57976601]
[1765504766821,0.002,3236.4,3235.4,4.06184591]
[1765504767140,0.002,3236.4,3235.6,0.466]
[1765504767535,0.002,3236.4,3235.4,0.9710799]
[1765504768426,0.002,3236.4,3235.5,0.489]
[1765504768645,0.002,3236.4,3235.1,0.4866]
[1765504768947,0.58247529,3236.4,3234.7,0.4866]
[1765504769148,0.58247529,3236.4,3234.9,0.58047529]
[1765504769350,0.58247529,3236.4,3235.0,0.489]
[1765504769711,0.58247529,3236.4,3234.8,3.09131936]
[1765504770047,0.58247529,3236.4,3234.9,0.489]
[1765504770250,0.58247529,3236.4,3234.9,0.9756]
[1765504770452,0.58247529,3236.4,3235.1,3.09106527]
[1765504770660,0.002,3236.4,3235.6,0.466]
[1765504770814,0.002,3236.4,3235.6,4.04561688]
[1765504771010,0.002,3236.4,3235.6,5.6513552]
[1765504772126,0.002,3236.4,3235.6,5.1623552]
[1765504772444,0.002,3236.4,3235.6,5.6513552]
[1765504772836,0.002,3236.4,3235.6,6.66229489]
[1765504773344,0.002,3236.4,3235.6,6.23183049]
[1765504773546,0.002,3236.4,3235.6,5.74283049]
[1765504773751,0.002,3236.4,3235.6,6.23183049]
[1765504774248,0.002,3236.4,3235.6,6.26273665]
[1765504774454,0.002,3236.4,3235.6,32.43933005]
[1765504774616,0.002,3236.4,3235.7,4.24197929]
[1765504774948,0.002,3236.4,3236.3,13.50606429]
[1765504775148,0.002,3236.4,3236.3,13.84699829]
[1765504775353,0.002,3236.4,3236.3,12.13081729]
[1765504775735,0.002,3236.4,3236.3,12.56128169]
[1765504776728,0.002,3236.4,3236.3,15.65123008]
[1765504776930,0.002,3236.4,3236.3,17.52535955]
[1765504778159,0.002,3236.4,3236.3,14.97628815]
[1765504778958,0.002,3236.4,3236.3,27.23713315]
[1765504779648,0.002,3236.4,3236.3,23.61135415]
[1765504780958,0.002,3236.4,3236.3,19.02753115]
[1765504781165,0.002,3236.4,3236.3,7.09285715]
[1765504781368,0.002,3236.4,3236.3,5.70772768]
[1765504781570,0.002,3236.4,3236.3,4.23274839]
[1765504781730,0.002,3236.4,3236.3,3.08994839]
[1765504781929,0.002,3236.4,3236.3,3.57894839]
[1765504782136,0.002,3236.4,3236.3,3.67042368]
[1765504782360,0.002,3236.4,3236.3,4.83547251]
[1765504782951,0.002,3236.4,3236.3,5.24097651]
[1765504783357,0.002,3236.4,3236.3,6.18717651]
[1765504783933,0.002,3236.4,3236.3,6.21807599]
[1765504784355,0.002,3236.4,3236.3,6.18717651]
[1765504785364,0.002,3236.4,3236.3,5.24097651]
[1765504785857,0.002,3236.4,3236.3,4.83547251]
[1765504786044,0.002,3236.4,3236.3,4.86637199]
[1765504786536,0.002,3236.4,3236.3,5.75387599]
[1765504786857,0.002,3236.4,3236.3,5.72297651]
[1765504787235,0.002,3236.4,3236.3,5.24097651]
[1765504792270,0.002,3236.4,3236.3,4.34647251]
[1765504792567,0.002,3236.4,3236.3,5.75387599]
[1765504792767,0.002,3236.4,3236.3,6.21807599]
[1765504792962,0.002,3236.4,3236.3,6.18717651]
[1765504793165,0.002,3236.4,3236.3,5.24097651]
[1765504793366,0.002,3236.4,3236.3,3.67042368]
[1765504793571,0.002,3236.4,3236.3,4.15942368]
[1765504794171,0.002,3236.4,3236.3,4.56492768]
[1765504795158,0.002,3236.4,3235.8,0.405504]
[1765504795371,0.002,3236.4,3236.0,3.09020642]
[1765504795670,0.002,3236.4,3235.6,0.71363432]
[1765504795969,0.002,3236.4,3235.9,3.09026714]
[1765504796273,0.002,3236.4,3235.7,3.57950466]
[1765504796274,0.002,3236.4,3236.0,0.489]
[1765504797642,0.002,3236.4,3236.0,3.57921635]
[1765504798347,0.002,3236.4,3236.1,0.489]
[1765504798671,0.002,3236.4,3235.1,0.1902]
[1765504798875,0.002,3236.4,3235.5,3.09062491]
[1765504799245,0.002,3236.4,3235.1,1.17617929]
[1765504799246,0.002,3236.4,3235.6,0.489]
[1765504799446,0.002,3236.4,3235.7,0.489]
[1765504799646,0.002,3236.4,3235.4,3.4963116]
[1765504799872,0.002,3236.4,3235.5,3.57968381]
[1765504800053,0.002,3236.4,3235.4,0.34963116]
[1765504800259,0.002,3236.4,3235.5,0.489]
[1765504800573,0.002,3236.4,3235.7,0.405504]
[1765504801350,0.002,3236.4,3235.8,6.18085172]
[1765504801680,0.002,3236.4,3235.9,0.5199033]
[1765504801984,0.002,3236.4,3235.9,0.9841033]
[1765504802190,0.002,3236.4,3236.0,0.7164955]
[1765504803005,0.002,3236.4,3234.7,0.4304644]
[1765504803277,0.002,3236.4,3234.4,0.001]
[1765504803278,0.98597929,3235.3,3234.4,0.001]
[1765504803485,0.58047529,3234.9,3234.4,0.001]
[1765504803667,18.01903876,3234.9,3234.4,0.001]
[1765504803857,9.52989293,3234.9,3234.4,0.001]
[1765504804283,0.58047529,3234.9,3234.4,0.001]
[1765504804591,3.09080793,3235.4,3234.4,0.001]
[1765504804785,0.58047529,3235.3,3234.9,0.49]
[1765504804986,3.09080793,3235.4,3234.9,0.49]
[1765504805866,0.58047529,3235.5,3234.4,0.001]
[1765504806173,0.58047529,3235.5,3234.8,0.491]
[1765504806760,0.58047529,3235.5,3234.9,0.49]
[1765504807556,0.58047529,3235.5,3234.8,0.491]
[1765504807761,0.58047529,3235.5,3234.8,0.001]
[1765504807962,0.58047529,3235.3,3234.8,0.001]
[1765504810285,0.58047529,3235.1,3234.8,0.001]
[1765504811002,3.08994839,3236.3,3235.0,0.482]
[1765504811170,6.17989678,3236.3,3235.0,0.482]
[1765504811506,0.58047529,3236.2,3234.9,0.4642]
[1765504811680,0.58047529,3236.2,3234.8,0.001]
[1765504812065,0.37078808,3235.9,3234.8,0.001]
[1765504812387,0.37078808,3235.9,3234.9,0.49]
[1765504812779,0.37078808,3235.9,3234.8,0.001]
[1765504812972,0.37078808,3235.9,3235.0,0.49]
[1765504813572,6.18085172,3235.8,3235.0,0.49]
[1765504815996,0.37078808,3235.4,3234.8,0.001]
[1765504816291,5.931155,3235.1,3234.8,0.001]
[1765504816460,0.49,3235.0,3234.8,0.001]
[1765504818094,3.67176095,3234.9,3234.8,0.001]
[1765504822010,19.66241795,3234.9,3234.8,0.001]
[1765504822173,21.76266741,3234.9,3234.8,0.001]
[1765504822476,17.01506551,3234.9,3234.8,0.001]
[1765504822676,6.81564695,3234.9,3234.8,0.001]
[1765504823404,12.81034995,3234.9,3234.8,0.001]
[1765504823696,9.56163195,3234.9,3234.8,0.001]
[1765504824406,13.47328795,3234.9,3234.8,0.001]
[1765504825300,11.56072095,3234.9,3234.8,0.001]
[1765504825504,11.55637595,3234.9,3234.8,0.001]
[1765504825800,11.17284395,3234.9,3234.8,0.001]
[1765504826692,11.34149095,3234.9,3234.8,0.001]
[1765504826892,8.11897495,3234.9,3234.8,0.001]
[1765504827284,7.81567795,3234.9,3234.8,0.001]
[1765504829628,13.51414895,3234.9,3234.8,0.001]
[1765504829906,16.30568195,3234.9,3234.8,0.001]
[1765504830506,6.66592295,3234.9,3234.8,0.001]
[1765504830805,7.56954495,3234.9,3234.8,0.001]
[1765504831808,14.36441095,3234.9,3234.8,0.001]
[1765504832712,14.34641095,3234.9,3234.8,0.001]
[1765504833689,22.94156695,3234.9,3234.8,0.001]
[1765504834016,7.83193395,3234.9,3234.8,0.001]
[1765504834230,7.50848595,3234.9,3234.8,0.001]
[1765504834719,4.56726495,3234.9,3234.8,0.001]
[1765504834920,25.02418495,3234.9,3234.8,0.001]
[1765504835216,21.28648095,3234.9,3234.8,0.001]
[1765504835387,20.52418095,3234.9,3234.8,0.001]
[1765504835705,21.33132668,3234.9,3234.8,0.001]
[1765504835912,24.51161568,3234.9,3234.8,0.001]
[1765504836410,24.51161568,3234.9,3234.1,0.001]
[1765504836411,10.271166,3234.5,3234.1,0.001]
[1765504836618,0.58047529,3234.8,3234.1,0.001]
[1765504836915,0.49,3234.7,3234.1,0.001]
[1765504837138,0.58047529,3234.5,3234.1,0.001]
[1765504838703,5.349084,3234.4,3234.1,0.001]
[1765504838908,0.49,3234.3,3234.1,0.001]
[1765504839201,3.67243002,3234.2,3234.1,0.001]
[1765504844724,9.41387871,3234.2,3234.1,0.001]
[1765504845716,9.81938271,3234.2,3234.1,0.001]
[1765504845918,3.67243002,3234.2,3234.1,0.001]
[1765504846135,3.67243002,3234.2,3234.1,1.1093]
[1765504846306,6.18314474,3234.6,3234.1,1.1093]
[1765504846507,3.67204766,3234.6,3234.5,0.471]
[1765504847314,15.59664109,3234.6,3234.1,0.001]
[1765504847534,6.32192398,3234.2,3234.1,0.001]
[1765504848710,0.58047529,3234.2,3234.1,0.001]
[1765504849437,3.67243002,3234.2,3234.1,0.001]
[1765504853404,4.07793402,3234.2,3234.1,0.001]
[1765504854155,4.24197929,3233.9,3233.5,0.001]
[1765504854312,24.39340373,3233.6,3233.5,0.001]
[1765504854938,37.74623773,3233.6,3233.5,0.001]
[1765504855714,0.405504,3233.3,3232.2,0.001]
[1765504855926,16.03456673,3232.9,3232.2,0.001]
[1765504856128,11.34749673,3232.9,3232.2,0.001]
[1765504857051,22.97911573,3232.9,3232.2,0.001]
[1765504857259,15.32216,3232.6,3232.2,0.001]
[1765504857421,16.52215244,3232.3,3232.2,0.001]
[1765504857763,18.29500396,3232.3,3232.2,0.001]
[1765504858112,23.72965896,3232.3,3232.2,0.001]
[1765504859017,23.56826896,3232.3,3232.2,0.001]
[1765504859441,0.98597929,3231.9,3230.9,0.1813]
[1765504859684,0.49,3231.8,3231.0,0.456]
[1765504859847,0.58047529,3231.6,3231.0,0.456]
[1765504860344,0.58047529,3231.6,3231.5,0.471]
[1765504860725,0.58047529,3231.6,3231.1,0.456]
[1765504861232,0.58047529,3231.6,3231.5,0.471]
[1765504861636,0.58047529,3231.6,3231.5,0.927]
[1765504862145,3.67491767,3231.6,3231.5,0.927]
[1765504862444,0.58047529,3231.5,3231.1,0.456]
[1765504863748,0.58047529,3231.5,3231.4,0.471]
[1765504864046,0.58047529,3232.0,3231.4,0.471]
[1765504864341,0.58047529,3232.0,3231.7,0.471]
[1765504864543,0.58047529,3232.0,3231.5,0.456]
[1765504864713,9.77289101,3232.1,3231.9,0.471]
[1765504864714,3.09396367,3232.1,3231.9,0.471]
[1765504864916,3.09396367,3232.1,3231.5,0.456]
[1765504864917,3.09396367,3232.1,3232.0,0.471]
[1765504865118,3.09367652,3232.4,3232.0,0.471]
[1765504865324,3.09367652,3232.4,3232.2,0.6523]
[1765504865545,3.09367652,3232.4,3232.3,0.471]
[1765504865850,3.67415181,3232.4,3232.3,0.927]
[1765504866465,3.67415181,3232.4,3232.3,0.471]
[1765504866818,3.67415181,3232.4,3232.3,0.927]
[1765504867022,3.6648758,3232.4,3232.3,0.927]
[1765504867453,3.6648758,3232.4,3232.3,0.471]
[1765504868254,3.6648758,3232.4,3232.3,0.927]
[1765504869058,0.58047529,3232.3,3231.8,0.1813]
[1765504869466,0.58047529,3232.3,3231.9,0.456]
[1765504869764,0.58047529,3232.3,3232.2,0.471]
[1765504870122,3.09365689,3232.5,3232.2,0.927]
[1765504870336,3.67415181,3232.4,3232.2,0.927]
[1765504870540,3.67415181,3232.4,3232.3,0.456]
[1765504870733,3.67415181,3232.4,3232.3,0.471]
[1765504871461,3.67415181,3232.4,3232.3,0.927]
[1765504872459,6.76782833,3232.4,3231.9,0.456]
[1765504872960,3.67415181,3232.4,3232.3,0.471]
[1765504874436,3.67415181,3232.4,3232.3,0.9482]
[1765504875244,6.76782833,3232.4,3232.0,0.4667]
[1765504875468,3.67415181,3232.4,3232.3,0.4552]
[1765504876765,6.76782833,3232.4,3231.8,0.648]
[1765504876977,6.76782833,3232.4,3231.9,0.4667]
[1765504878583,6.76782833,3232.4,3230.9,3.27640967]
[1765504878584,17.02726729,3232.4,3231.5,0.4667]
[1765504878883,9.86150485,3232.4,3231.5,0.4667]
[1765504879376,6.76782833,3232.4,3231.5,0.4667]
[1765504880344,9.86150485,3232.4,3231.5,0.4667]
[1765504881062,9.86150485,3232.4,3231.4,0.4667]
[1765504881063,0.405504,3232.1,3231.4,0.4667]
[1765504881383,0.405504,3231.5,3230.5,0.001]
[1765504881682,0.58047529,3231.2,3230.5,0.001]
[1765504881852,0.45175377,3231.1,3230.5,0.001]
[1765504882462,0.58047529,3231.0,3230.5,0.001]
[1765504883479,1.07147529,3231.0,3230.5,0.001]
[1765504883978,0.405504,3230.9,3230.5,0.001]
[1765504884348,1.07147529,3231.0,3230.5,0.4677]
[1765504884548,0.58047529,3230.8,3230.5,0.4677]
[1765504884852,0.58047529,3230.8,3230.5,0.001]
[1765504885068,0.37078808,3231.2,3230.5,0.001]
[1765504885069,0.37078808,3231.6,3230.7,0.4552]
[1765504885280,0.58047529,3231.4,3230.8,0.9219]
[1765504886097,0.92955376,3231.3,3230.8,0.9219]
[1765504886493,0.92955376,3231.3,3230.5,0.001]
[1765504886494,6.18869324,3231.7,3231.2,0.6381]
[1765504886694,1.50237529,3231.6,3231.3,0.9219]
[1765504886992,6.18869324,3231.7,3231.3,0.9219]
[1765504887193,6.18869324,3231.7,3231.5,0.4552]
[1765504887397,0.58047529,3231.6,3231.2,0.6496]
[1765504888693,0.58047529,3231.4,3231.2,0.6496]
[1765504888896,0.58047529,3231.4,3231.3,0.4667]
[1765504889103,0.58047529,3231.4,3231.3,0.9219]
[1765504889966,0.58047529,3231.5,3231.3,0.9219]
[1765504890190,0.58047529,3231.5,3231.4,0.9219]
[1765504891001,3.67501343,3231.5,3231.4,0.9219]
[1765504891588,3.09425088,3231.8,3231.4,0.9219]
[1765504891795,0.58047529,3231.7,3231.5,0.4667]
[1765504892294,0.58047529,3231.7,3231.6,0.4552]
[1765504892705,0.58047529,3231.7,3231.6,0.9219]
[1765504893076,3.67482191,3231.7,3231.6,0.9219]
[1765504893385,0.58047529,3231.7,3231.6,0.9219]
[1765504893593,6.18716162,3232.5,3231.6,0.9219]
[1765504893902,0.58047529,3232.4,3231.8,0.4552]
[1765504894301,0.58047529,3232.4,3232.3,0.6381]
[1765504894709,0.58047529,3232.4,3232.3,1.1048]
[1765504895012,6.18716162,3232.5,3232.0,0.6496]
[1765504895219,0.58047529,3232.2,3232.0,0.6496]
[1765504895592,0.58047529,3232.2,3232.1,0.9219]
[1765504897719,0.92917085,3232.7,3232.1,0.9219]
[1765504898023,3.09358081,3232.5,3232.2,0.4552]
[1765504898314,0.58047529,3232.4,3232.2,0.4552]
[1765504898921,0.58047529,3232.4,3232.3,0.4552]
[1765504899528,0.58047529,3232.4,3232.3,0.9219]
[1765504899716,0.4667,3233.1,3232.3,0.9219]
[1765504900023,6.18582208,3233.2,3232.4,0.9577]
[1765504900183,0.58047529,3233.1,3232.4,0.9577]
[1765504900383,0.58047529,3233.1,3232.5,0.4667]
[1765504901813,0.58047529,3232.9,3232.6,0.491]
[1765504902391,0.58047529,3232.9,3232.7,0.4667]
[1765504902603,0.58047529,3232.9,3232.6,0.9577]
[1765504902992,0.58047529,3232.9,3232.8,0.4552]
[1765504904108,3.67367334,3232.9,3232.8,0.4552]
[1765504904414,3.67367334,3232.9,3232.8,0.9281]
[1765504904747,3.67367334,3232.9,3232.8,0.4552]
[1765504904919,3.67367334,3232.9,3232.1,0.4729]
[1765504904920,0.58047529,3232.8,3232.1,0.4729]
[1765504905518,0.58047529,3232.8,3232.0,0.6739]
[1765504906491,0.58047529,3232.8,3231.2,3.27770763]
[1765504906492,0.58047529,3232.6,3231.2,0.1829]
[1765504906698,0.98597929,3232.6,3231.5,0.4729]
[1765504906918,30.92929461,3232.5,3231.5,0.4729]
[1765504907222,0.58047529,3232.3,3231.5,0.4729]
[1765504907416,1.42029461,3232.5,3231.5,0.4729]
[1765504907615,5.830721,3232.4,3231.5,0.4729]
[1765504907912,3.70574,3232.4,3231.5,0.4729]
[1765504908623,0.58047529,3232.2,3231.5,0.4729]
[1765504910719,0.58047529,3232.0,3231.5,0.4729]
[1765504910921,0.58047529,3232.0,3230.8,0.4739]
[1765504910922,9.615106,3231.7,3230.8,0.4739]
[1765504911223,11.583,3231.8,3230.8,0.4739]
[1765504911520,0.492,3231.7,3230.9,0.03095112]
[1765504911697,3.09389656,3232.2,3231.9,0.6794]
[1765504911902,0.492,3232.6,3232.2,0.4881]
[1765504912102,6.18658746,3232.8,3232.3,0.4729]
[1765504912305,0.58047529,3232.7,3232.5,0.4881]
[1765504912504,0.58047529,3232.7,3231.9,0.1913]
[1765504912722,0.58047529,3232.7,3232.1,0.4729]
[1765504912907,6.18697024,3232.6,3232.1,0.4729]
[1765504913106,3.09348512,3232.6,3232.1,0.4729]
[1765504913306,0.58047529,3232.7,3232.5,0.4881]
[1765504913508,0.58047529,3232.7,3232.1,0.4729]
[1765504913723,3.09329382,3232.8,3232.7,0.4881]
[1765504914021,3.67376911,3232.8,3232.7,0.4881]
[1765504914227,3.67376911,3232.8,3232.7,0.961]
[1765504914412,6.1850569,3233.6,3232.7,0.961]
[1765504914603,0.92896657,3233.5,3232.8,0.4729]
[1765504914918,0.58047529,3233.3,3232.8,0.4729]
[1765504915124,0.58047529,3233.3,3232.3,0.4729]
[1765504915313,0.58047529,3233.3,3232.6,0.491]
[1765504915891,0.58047529,3233.3,3232.3,0.4729]
[1765504916107,0.58047529,3233.3,3232.4,0.491]
[1765504917236,0.58047529,3233.1,3232.5,0.4729]
[1765504917631,0.58047529,3233.1,3232.5,0.47096]
[1765504919241,0.58047529,3232.9,3232.5,0.47096]
[1765504919909,0.58047529,3232.9,3231.9,3.28542592]
[1765504920112,0.58047529,3232.9,3232.0,0.4729]
[1765504920329,0.58047529,3232.9,3231.1,3.09585695]
[1765504920330,0.58047529,3232.7,3231.1,3.09585695]
[1765504920640,0.58047529,3232.3,3231.2,0.4729]
[1765504920814,0.98597929,3232.4,3231.3,0.491]
[1765504921009,0.405504,3232.4,3231.3,0.491]
[1765504921210,0.58047529,3231.9,3231.1,0.001]
[1765504921438,0.58047529,3231.9,3231.1,0.4739]
[1765504921739,0.58047529,3231.9,3231.1,0.001]
[1765504921940,1.26277529,3231.9,3231.1,0.001]
[1765504922415,1.26277529,3231.9,3231.2,0.4729]
[1765504922618,0.58047529,3231.9,3231.2,0.4729]
[1765504922819,0.58047529,3231.9,3231.8,0.4881]
[1765504923244,3.67463043,3231.9,3231.8,0.4881]
[1765504923421,0.58047529,3232.0,3231.8,0.961]
[1765504923636,6.76744553,3232.6,3231.9,0.4881]
[1765504923821,0.58047529,3232.4,3231.3,0.491]
[1765504924146,9.580372,3232.0,3231.1,0.001]
[1765504924347,9.68903629,3231.9,3231.1,0.001]
[1765504924548,0.58047529,3232.0,3231.1,0.001]
[1765504924846,0.405504,3232.2,3231.1,0.001]
[1765504924847,0.405504,3232.2,3231.1,0.4739]
[1765504925050,0.58047529,3232.0,3231.1,0.4739]